bitfinex-derivatives/quotes_ETHF0:USTF0_20250505
["timestamp","ask_amount","ask_price","bid_price","bid_amount"]
[1746449447712,3.2078,1804.1,1804.0,1.10859]
[1746449447909,1.6953,1804.1,1804.0,1.10859]
[1746449448216,1.6953,1804.1,1804.0,4.84059]
[1746449448606,1.6953,1804.1,1804.0,7.40059]
[1746449449910,3.6874408,1804.2,1804.1,1.10853]
[1746449450123,6.5145008,1804.2,1804.1,2.78693]
[1746449450511,2.82706,1804.2,1804.1,2.78693]
[1746449450813,1.10853,1804.1,1804.0,3.732]
[1746449451017,2.82713,1804.1,1804.0,3.732]
[1746449451220,1.10859,1804.0,1803.9,4.67462]
[1746449451415,2.82719,1804.0,1803.9,3.566]
[1746449451611,1.10875,1803.8,1803.7,1.10872]
[1746449452121,1.10875,1803.8,1803.7,4.84072]
[1746449452422,2.68215,1803.8,1803.7,4.84072]
[1746449454624,1.5734,1803.8,1803.7,4.84072]
[1746449455121,1.5734,1803.8,1803.7,6.55622]
[1746449455325,2.68211,1803.8,1803.7,6.55622]
[1746449456222,1.5734,1803.8,1803.7,6.55622]
[1746449456618,2.68211,1803.8,1803.7,6.55622]
[1746449457825,1.5734,1803.8,1803.7,6.55622]
[1746449458124,4.31637,1804.1,1804.0,1.10859]
[1746449458424,5.13967,1804.1,1804.0,1.10859]
[1746449459024,4.0311,1804.1,1804.0,1.10859]
[1746449459223,1.93183,1804.1,1804.0,4.84059]
[1746449459528,3.56383,1804.1,1804.0,4.84059]
[1746449460226,2.4553,1804.1,1804.0,4.84059]
[1746449460523,3.56383,1804.1,1804.0,4.84059]
[1746449464428,1.632,1804.1,1804.0,4.84059]
[1746449464625,1.632,1804.1,1804.0,5.66229]
[1746449465138,1.10849,1804.2,1804.1,1.10853]
[1746449465327,2.74809,1804.2,1804.1,1.10853]
[1746449466329,1.6396,1804.2,1804.1,1.10853]
[1746449466627,1.6396,1804.2,1804.1,2.81813]
[1746449467828,3.6874408,1804.5,1804.1,4.9174]
[1746449468027,3.6874408,1804.5,1804.4,1.10834]
[1746449468224,3.6874408,1804.5,1804.4,4.84034]
[1746449468724,3.6874408,1804.5,1804.4,5.70184]
[1746449468924,3.6874408,1804.5,1804.4,10.70184]
[1746449469119,3.6874408,1804.5,1804.4,12.36834]
[1746449469732,5.55152206,1804.6,1804.5,1.10828]
[1746449469934,5.55152206,1804.6,1804.5,5.98258]
[1746449470128,5.55152206,1804.6,1804.5,9.71458]
[1746449470332,1.7194,1804.8,1804.7,1.10816]
[1746449470829,1.7194,1804.8,1804.7,2.80626]
[1746449471132,1.7194,1804.8,1804.7,6.53826]
[1746449474933,1.94992,1805.0,1804.9,1.10803]
[1746449476137,1.94992,1805.0,1804.9,4.84003]
[1746449476432,3.66872,1805.0,1804.9,4.84003]
[1746449480938,3.66872,1805.0,1804.9,3.732]
[1746449481127,8.66872,1805.0,1804.9,3.732]
[1746449481326,8.66872,1805.0,1804.4,2.77081]
[1746449481327,1.10828,1804.6,1804.5,1.10823]
[1746449481536,1.10834,1804.5,1804.4,1.1083]
[1746449481740,3.3242,1804.5,1804.4,1.1083]
[1746449481936,3.2078,1804.6,1804.5,1.10828]
[1746449482138,1.7194,1804.7,1804.6,1.10822]
[1746449482333,1.7194,1804.7,1804.6,2.71832]
[1746449482839,2.82756,1804.7,1804.6,2.71832]
[1746449483541,2.82756,1804.7,1804.6,1.10822]
[1746449484942,2.82756,1804.7,1804.5,3.732]
[1746449484943,1.10822,1804.6,1804.5,4.84025]
[1746449485142,1.10828,1804.5,1804.4,1.1083]
[1746449485642,2.81308,1804.5,1804.4,1.1083]
[1746449486135,2.81308,1804.5,1804.4,4.8403]
[1746449491548,3.65188,1804.5,1804.4,4.8403]
[1746449492537,2.5436,1804.5,1804.4,4.8403]
[1746449492738,3.65188,1804.5,1804.4,4.8403]
[1746449493046,2.5436,1804.5,1804.4,4.8403]
[1746449493240,3.65188,1804.5,1804.4,4.8403]
[1746449493541,3.65188,1804.5,1804.4,6.483]
[1746449493741,1.7048,1804.5,1804.4,6.483]
[1746449493940,0.8377,1804.7,1804.6,1.10822]
[1746449494146,2.5005,1804.7,1804.6,1.10822]
[1746449497344,2.5005,1804.7,1804.6,2.67972]
[1746449497542,1.6628,1804.7,1804.6,2.67972]
[1746449499552,2.77096,1804.7,1804.6,2.67972]
[1746449500053,2.77096,1804.7,1804.6,1.10822]
[1746449501347,1.10822,1804.6,1804.5,3.732]
[1746449501550,4.46242,1804.6,1804.5,3.732]
[1746449501851,4.46242,1804.6,1804.5,4.84028]
[1746449502150,4.46242,1804.6,1804.5,3.732]
[1746449502351,4.46242,1804.6,1804.5,4.84028]
[1746449503151,3.67592,1804.6,1804.5,4.84028]
[1746449503349,2.5677,1804.6,1804.5,4.84028]
[1746449503551,2.5677,1804.6,1804.5,5.64518]
[1746449503751,3.67592,1804.6,1804.5,5.64518]
[1746449504656,3.67592,1804.6,1804.5,4.84028]
[1746449506762,3.67592,1804.6,1804.5,3.732]
[1746449507064,6.88372,1804.6,1804.5,4.84028]
[1746449507562,6.88372,1804.6,1804.5,3.732]
[1746449508561,6.88372,1804.6,1804.5,4.84028]
[1746449511364,6.88372,1804.6,1804.5,3.732]
[1746449511559,1.10846,1804.2,1804.1,1.1085]
[1746449512657,2.79276,1804.2,1804.1,1.1085]
[1746449519867,2.79276,1804.2,1804.1,2.8108]
[1746449521164,1.91504,1804.3,1804.2,1.10846]
[1746449521466,4.0717,1804.4,1804.2,1.10846]
[1746449521467,6.76228,1804.4,1804.3,1.1084]
[1746449521660,4.79,1804.4,1804.3,1.1084]
[1746449521859,5.89834,1804.4,1804.3,2.8107]
[1746449522261,5.89834,1804.4,1804.3,6.5427]
[1746449522764,6.74864,1804.4,1804.3,3.732]
[1746449523171,1.10846,1804.2,1804.1,1.1085]
[1746449523869,1.97726,1804.2,1804.1,1.1085]
[1746449529172,1.5867,1804.3,1804.0,5.3143]
[1746449529173,2.69516,1804.3,1804.2,1.10846]
[1746449529373,4.0621,1804.4,1804.3,1.1084]
[1746449529676,4.31614,1804.4,1804.3,1.1084]
[1746449529871,5.98294,1804.4,1804.3,1.1084]
[1746449530066,5.98294,1804.4,1804.3,4.8404]
[1746449530874,5.98294,1804.4,1804.3,3.732]
[1746449531574,10.98294,1804.4,1804.3,3.732]
[1746449532167,5.98294,1804.4,1804.3,3.732]
[1746449533467,9.54694,1804.4,1804.3,3.732]
[1746449535163,9.98332758,1804.4,1804.3,3.732]
[1746449536867,9.54694,1804.4,1804.3,3.732]
[1746449537069,1.10859,1804.0,1803.9,1.10861]
[1746449537280,1.10865,1803.9,1803.8,2.72916]
[1746449537573,2.77905,1803.9,1803.8,2.72916]
[1746449538168,2.77905,1803.9,1803.8,6.46116]
[1746449538974,1.6704,1803.9,1803.8,6.46116]
[1746449539575,2.77905,1803.9,1803.8,6.46116]
[1746449539768,1.92876,1804.1,1803.8,13.12414]
[1746449539973,1.92876,1804.1,1804.0,1.10859]
[1746449540475,1.92876,1804.1,1804.0,1.89899]
[1746449540674,3.65456,1804.1,1804.0,1.89899]
[1746449541075,2.83436,1804.1,1804.0,5.63099]
[1746449541277,2.83436,1804.1,1804.0,6.44469]
[1746449541472,11.43552206,1804.3,1804.0,14.21608]
[1746449541667,11.43552206,1804.3,1804.2,1.10846]
[1746449542276,11.43552206,1804.3,1804.2,4.84046]
[1746449542777,5.55152206,1804.3,1804.2,9.84046]
[1746449543172,5.55152206,1804.3,1804.2,11.52336]
[1746449543576,11.0712489,1804.8,1804.7,1.10816]
[1746449543577,7.50804206,1804.8,1804.7,1.10816]
[1746449543876,6.65964206,1804.8,1804.7,1.10816]
[1746449544278,8.33364206,1804.8,1804.7,4.84016]
[1746449544475,8.33364206,1804.8,1804.7,6.49446]
[1746449544876,5.55152206,1804.8,1804.7,6.49446]
[1746449547681,1.5688,1804.9,1804.8,1.1081]
[1746449547981,1.5688,1804.9,1804.8,2.758]
[1746449548174,2.67683,1804.9,1804.8,4.8401]
[1746449549980,1.5688,1804.9,1804.8,4.8401]
[1746449550175,2.67683,1804.9,1804.8,4.8401]
[1746449550382,0.8166,1805.0,1804.9,1.10798]
[1746449550383,1.10801,1805.0,1804.9,1.10798]
[1746449550685,2.71831,1805.0,1804.9,2.70418]
[1746449551082,2.71831,1805.0,1804.9,6.43618]
[1746449553086,1.6103,1805.0,1804.9,6.43618]
[1746449553279,2.71827,1805.0,1804.9,6.43618]
[1746449553782,2.71827,1805.0,1804.9,3.732]
[1746449554286,1.10803,1804.9,1804.8,1.10808]
[1746449554477,3.52883,1804.9,1804.8,1.10808]
[1746449554984,6.73663,1804.9,1804.8,1.10808]
[1746449555185,6.73663,1804.9,1804.8,4.84008]
[1746449555685,3.52883,1804.9,1804.8,4.84008]
[1746449556277,2.4208,1804.9,1804.8,4.84008]
[1746449556478,5.17004,1805.1,1805.0,1.10797]
[1746449557082,5.17004,1805.1,1805.0,3.732]
[1746449557280,6.76104,1805.1,1805.0,3.732]
[1746449558183,1.10797,1805.0,1804.9,1.10798]
[1746449558385,2.69897,1805.0,1804.9,1.10798]
[1746449559185,1.10803,1804.9,1804.8,1.10806]
[1746449559387,2.84813,1804.9,1804.8,1.10806]
[1746449560089,2.84813,1804.9,1804.8,4.84006]
[1746449560386,1.7401,1804.9,1804.8,4.84006]
[1746449560590,2.84813,1804.9,1804.8,4.84006]
[1746449561085,1.10822,1804.6,1804.5,1.10827]
[1746449561385,1.1084,1804.4,1804.3,1.10837]
[1746449561981,2.7583,1804.4,1804.3,1.10837]
[1746449562188,2.7583,1804.4,1804.3,4.84037]
[1746449562683,1.6499,1804.4,1804.3,4.84037]
[1746449563189,1.6499,1804.4,1804.3,6.51727]
[1746449564081,2.75824,1804.4,1804.3,6.51727]
[1746449564290,1.6499,1804.4,1804.3,6.51727]
[1746449567694,3.54194,1804.4,1804.3,6.51727]
[1746449571199,3.54194,1804.4,1804.3,4.84037]
[1746449573902,2.4336,1804.4,1804.3,4.84037]
[1746449574099,3.54194,1804.4,1804.3,4.84037]
[1746449577501,2.4336,1804.4,1804.3,4.84037]
[1746449577801,3.54194,1804.4,1804.3,4.84037]
[1746449578098,3.54194,1804.4,1804.3,6.53937]
[1746449580602,3.54194,1804.4,1804.3,4.84037]
[1746449585001,6.74974,1804.4,1804.3,3.732]
[1746449585401,11.74974,1804.4,1804.3,3.732]
[1746449585600,15.31874,1804.4,1804.3,3.732]
[1746449586110,1.10859,1804.0,1803.9,1.1086]
[1746449586905,2.77149,1804.0,1803.7,3.2078]
[1746449587113,1.10877,1803.7,1803.6,8.4862035]
[1746449588011,4.37937,1803.8,1803.7,1.10877]
[1746449589214,4.37937,1803.8,1803.7,4.84077]
[1746449590916,4.37937,1803.8,1803.7,3.732]
[1746449595823,9.37937,1803.8,1803.7,3.732]
[1746449596114,9.37937,1803.8,1803.2,9.5305]
[1746449596115,5.54408,1803.7,1803.3,1.10896]
[1746449596322,1.10902,1803.4,1803.3,1.10896]
[1746449597124,2.71252,1803.4,1803.3,4.84096]
[1746449597626,2.71252,1803.4,1803.3,3.732]
[1746449598227,5.92032,1803.4,1803.3,3.732]
[1746449598424,11.80432,1803.4,1803.3,3.732]
[1746449604223,1.10902,1803.3,1803.2,4.84108]
[1746449604421,2.76222,1803.3,1803.2,4.84108]
[1746449606530,2.76222,1803.3,1803.2,3.732]
[1746449606731,2.76222,1803.3,1803.2,4.84108]
[1746449606928,2.76222,1803.3,1803.2,3.732]
[1746449609237,2.76222,1803.3,1803.2,4.84108]
[1746449610227,2.76222,1803.3,1803.2,6.45948]
[1746449610428,1.6532,1803.3,1803.2,6.45948]
[1746449610734,4.31679,1803.4,1803.3,1.10902]
[1746449610928,6.01909,1803.4,1803.3,1.10902]
[1746449611128,6.01909,1803.4,1803.3,4.84102]
[1746449616441,6.01909,1803.4,1803.3,3.732]
[1746449616641,6.01909,1803.4,1803.3,4.84102]
[1746449618038,6.01909,1803.4,1803.3,3.732]
[1746449618238,6.01909,1803.4,1803.3,4.84102]
[1746449623749,6.01909,1803.4,1803.3,3.732]
[1746449627151,1.10914,1803.1,1803.0,1.10918]
[1746449627651,1.10914,1803.1,1803.0,2.81598]
[1746449628152,1.10914,1803.1,1803.0,6.54798]
[1746449628349,2.78514,1803.1,1803.0,6.54798]
[1746449630751,2.78514,1803.1,1803.0,4.84118]
[1746449631744,2.78514,1803.1,1803.0,3.732]
[1746449633652,2.78514,1803.1,1803.0,4.8412]
[1746449634055,2.78514,1803.1,1803.0,3.732]
[1746449636155,1.10926,1802.9,1802.8,1.10928]
[1746449636452,1.10932,1802.8,1802.7,8.13725]
[1746449636651,2.72202,1802.8,1802.7,8.13725]
[1746449637252,2.72202,1802.8,1802.7,5.68095]
[1746449638358,2.72202,1802.8,1802.7,7.26605]
[1746449639159,2.72202,1802.8,1802.7,5.68095]
[1746449639656,1.10932,1802.8,1802.7,7.26605]
[1746449640559,2.73259,1802.9,1802.8,1.10932]
[1746449640859,1.10929,1802.9,1802.8,2.69442]
[1746449641046,2.76119,1802.9,1802.8,2.69442]
[1746449641248,2.76119,1802.9,1802.8,6.42642]
[1746449641756,2.76119,1802.9,1802.8,3.732]
[1746449642150,1.10939,1802.7,1802.6,0.8107]
[1746449642456,1.10939,1802.7,1802.6,1.92013]
[1746449642757,1.10939,1802.7,1802.6,3.56493]
[1746449642955,1.10945,1802.6,1802.5,1.93536]
[1746449643160,1.10945,1802.6,1802.5,6.49056]
[1746449643362,1.10945,1802.6,1802.5,4.5552]
[1746449643559,1.10945,1802.6,1802.5,5.66471]
[1746449644059,1.10945,1802.6,1802.5,7.27441]
[1746449644961,2.76135,1802.7,1802.6,1.10945]
[1746449646061,3.2078,1802.8,1802.7,1.10939]
[1746449646457,3.2078,1802.8,1802.7,2.71909]
[1746449646764,4.31712,1802.8,1802.7,2.71909]
[1746449647165,3.2078,1802.8,1802.7,6.45109]
[1746449647359,9.56967403,1802.9,1802.8,1.10932]
[1746449647564,3.68567403,1802.9,1802.8,3.51902]
[1746449648066,3.68567403,1802.9,1802.8,7.25102]
[1746449649165,4.79493403,1802.9,1802.8,7.25102]
[1746449649368,2.74585,1803.0,1802.9,1.10926]
[1746449649865,1.10926,1802.9,1802.8,4.84132]
[1746449650064,3.69946,1802.9,1802.8,4.84132]
[1746449650255,3.69946,1802.9,1802.8,1.10932]
[1746449651367,3.69946,1802.9,1802.8,4.84132]
[1746449652470,2.5902,1802.9,1802.8,4.84132]
[1746449654268,1.72,1802.9,1802.8,4.84132]
[1746449654567,8.00269403,1803.0,1802.9,1.10926]
[1746449654767,9.66539403,1803.0,1802.9,1.10926]
[1746449655172,9.66539403,1803.0,1802.9,4.84126]
[1746449655465,3.68567403,1803.0,1802.9,4.84126]
[1746449655670,1.90074,1803.1,1803.0,1.1092]
[1746449655969,3.56344,1803.1,1803.0,1.1092]
[1746449656169,1.1092,1803.0,1802.9,1.1092]
[1746449656471,2.8132,1803.0,1802.9,1.1092]
[1746449656971,1.704,1803.0,1802.9,1.1092]
[1746449657161,1.704,1803.0,1802.9,4.8412]
[1746449657969,1.90079,1803.1,1803.0,1.1092]
[1746449658158,3.60479,1803.1,1803.0,4.8412]
[1746449659169,1.704,1803.1,1803.0,4.8412]
[1746449659371,7.23767403,1803.2,1803.1,1.10914]
[1746449659573,3.68567403,1803.2,1803.1,2.78214]
[1746449660773,4.79475403,1803.2,1803.1,2.78214]
[1746449660960,6.39005403,1803.2,1803.1,1.10914]
[1746449661164,7.26045403,1803.2,1803.1,1.10914]
[1746449661571,3.57478,1803.2,1803.1,1.10914]
[1746449662974,1.10914,1803.1,1803.0,4.84116]
[1746449663171,2.68554,1803.1,1803.0,4.84116]
[1746449665777,2.68554,1803.1,1803.0,4.8412]
[1746449666075,2.68554,1803.1,1803.0,3.732]
[1746449667686,6.37121403,1803.1,1803.0,3.732]
[1746449668276,1.10926,1802.9,1802.8,1.10929]
[1746449668971,3.60086,1802.9,1802.8,1.10929]
[1746449669176,3.60086,1802.9,1802.8,4.84129]
[1746449672581,0.8193,1803.0,1802.9,1.10926]
[1746449672780,1.1092,1803.0,1802.9,3.63726]
[1746449672979,6.48406403,1803.1,1803.0,1.1092]
[1746449673178,6.48406403,1803.1,1803.0,6.5701]
[1746449674884,2.79839,1803.1,1803.0,6.5701]
[1746449676182,1.6892,1803.1,1803.0,6.5701]
[1746449676876,2.79834,1803.1,1803.0,6.5701]
[1746449679686,4.79473403,1803.3,1803.2,1.10908]
[1746449680178,6.53253403,1803.3,1803.2,5.69008]
[1746449681283,6.53253403,1803.3,1803.2,7.33188]
[1746449681780,3.68567403,1803.3,1803.2,7.33188]
[1746449681989,1.10896,1803.4,1803.3,1.10902]
[1746449682191,2.82496,1803.4,1803.3,2.75082]
[1746449683091,2.82496,1803.4,1803.3,6.48282]
[1746449684284,2.82496,1803.4,1803.3,4.84102]
[1746449685793,2.82496,1803.4,1803.3,6.43432]
[1746449687495,1.716,1803.4,1803.3,6.43432]
[1746449688188,2.82496,1803.4,1803.3,6.43432]
[1746449688796,1.716,1803.4,1803.3,6.43432]
[1746449689394,2.82496,1803.4,1803.3,6.43432]
[1746449690000,1.10894,1803.5,1803.4,1.10889]
[1746449690190,1.10894,1803.5,1803.4,6.43609]
[1746449690702,2.75864,1803.5,1803.4,6.43609]
[1746449691496,2.75864,1803.5,1803.4,3.732]
[1746449693105,2.75864,1803.5,1803.4,4.84096]
[1746449695402,2.75864,1803.5,1803.4,3.732]
[1746449695613,5.96644,1803.5,1803.4,3.732]
[1746449696204,5.96644,1803.5,1803.1,1.10913]
[1746449696205,1.10908,1803.2,1803.1,1.10913]
[1746449696407,4.31688,1803.2,1803.1,1.10913]
[1746449697308,5.88878,1803.2,1803.1,1.10913]
[1746449698110,2.68098,1803.2,1803.1,1.10913]
[1746449698311,1.5719,1803.2,1803.1,1.10913]
[1746449698602,2.68098,1803.2,1803.1,1.10913]
[1746449698804,1.10914,1803.1,1803.0,7.30426]
[1746449699106,2.74184,1803.1,1803.0,7.30426]
[1746449699309,1.6327,1803.1,1803.0,7.30426]
[1746449700208,2.74184,1803.1,1803.0,7.30426]
[1746449700409,2.74184,1803.1,1803.0,4.84116]
[1746449701213,2.74184,1803.1,1803.0,3.732]
[1746449702306,2.74184,1803.1,1803.0,4.8412]
[1746449702709,1.6327,1803.1,1803.0,4.8412]
[1746449702909,1.95137,1803.3,1803.2,1.10908]
[1746449703208,3.65237,1803.3,1803.2,4.84108]
[1746449703508,3.65237,1803.3,1803.2,3.732]
[1746449703912,3.65237,1803.3,1803.2,4.84108]
[1746449704909,3.65237,1803.3,1803.2,3.732]
[1746449707619,3.65237,1803.3,1803.2,4.84108]
[1746449711521,3.65237,1803.3,1803.2,7.34098]
[1746449712320,1.95889,1803.4,1803.3,1.10902]
[1746449712513,13.96312403,1803.5,1803.4,1.10896]
[1746449712913,10.41312403,1803.5,1803.4,1.10896]
[1746449713213,10.41312403,1803.5,1803.4,4.84096]
[1746449713518,10.41306403,1803.5,1803.4,4.84096]
[1746449713815,7.20526403,1803.5,1803.4,4.84096]
[1746449714120,6.39906403,1803.5,1803.4,4.84096]
[1746449714422,6.39906403,1803.5,1803.4,6.55956]
[1746449714614,4.79452403,1803.6,1803.5,1.10889]
[1746449714813,4.79452403,1803.6,1803.5,3.68609]
[1746449715123,4.79452403,1803.6,1803.5,7.41809]
[1746449716218,6.36232403,1803.6,1803.5,3.732]
[1746449716420,7.22862403,1803.6,1803.5,3.732]
[1746449716620,7.22862403,1803.6,1803.5,4.84089]
[1746449718317,3.54295,1803.6,1803.5,4.84089]
[1746449718517,2.4341,1803.6,1803.5,4.84089]
[1746449718718,0.8166,1803.7,1803.5,5.3786]
[1746449718921,8.00223403,1803.8,1803.7,1.10877]
[1746449719122,9.62133403,1803.8,1803.7,1.10877]
[1746449720122,9.62133403,1803.8,1803.7,4.84077]
[1746449720625,8.51257403,1803.8,1803.7,4.84077]
[1746449720817,9.62128403,1803.8,1803.7,6.54137]
[1746449721123,8.51257403,1803.8,1803.7,6.54137]
[1746449722322,1.6191,1803.8,1803.7,6.54137]
[1746449722525,9.57980403,1804.0,1803.9,1.10865]
[1746449723127,9.57980403,1804.0,1803.9,4.84065]
[1746449723321,6.37200403,1804.0,1803.9,4.84065]
[1746449725029,1.5777,1804.0,1803.9,4.84065]
[1746449725323,1.5777,1804.0,1803.9,6.52005]
[1746449725525,2.68629,1804.0,1803.9,6.52005]
[1746449727428,2.68629,1804.0,1803.9,8.20475]
[1746449728733,1.5777,1804.0,1803.9,8.20475]
[1746449729028,1.10849,1804.2,1803.9,7.0961]
[1746449729223,2.81549,1804.2,1804.1,1.10853]
[1746449730324,2.81549,1804.2,1804.1,2.74613]
[1746449730630,1.707,1804.2,1804.1,2.74613]
[1746449731030,2.81546,1804.2,1804.1,2.74613]
[1746449731442,1.707,1804.2,1804.1,2.74613]
[1746449731824,2.81546,1804.2,1804.1,2.74613]
[1746449737232,1.10853,1804.1,1804.0,4.84056]
[1746449737431,2.68663,1804.1,1804.0,4.84056]
[1746449739137,2.68663,1804.1,1804.0,3.732]
[1746449749037,5.89443,1804.1,1804.0,3.732]
[1746449749235,16.77843,1804.1,1804.0,1.06103]
[1746449749435,1.10889,1803.5,1803.4,4.31672]
[1746449749637,1.10889,1803.5,1803.4,5.92072]
[1746449750138,1.10889,1803.5,1803.4,9.65272]
[1746449750437,3.63948,1803.6,1803.5,1.10889]
[1746449750743,3.63948,1803.6,1803.5,2.84239]
[1746449750942,1.92272,1803.7,1803.6,1.10883]
[1746449751146,1.92272,1803.7,1803.6,4.51973]
[1746449751441,2.69916,1803.8,1803.7,1.10877]
[1746449751645,2.69916,1803.8,1803.7,2.84227]
[1746449752145,2.69916,1803.8,1803.7,6.57427]
[1746449754245,2.69916,1803.8,1803.7,5.4655]
[1746449754544,2.69916,1803.8,1803.7,3.732]
[1746449764548,2.69916,1803.8,1803.7,4.84077]
[1746449764748,4.79436403,1803.9,1803.8,1.10871]
[1746449764950,4.79436403,1803.9,1803.8,4.34191]
[1746449765252,4.79436403,1803.9,1803.8,8.07391]
[1746449765451,3.68567403,1803.9,1803.8,8.07391]
[1746449766052,4.79432403,1803.9,1803.8,8.07391]
[1746449766253,3.68567403,1803.9,1803.8,8.07391]
[1746449767461,4.79432403,1803.9,1803.8,3.732]
[1746449767659,6.78855,1803.9,1803.8,3.732]
[1746449768760,6.78855,1803.9,1803.8,4.84071]
[1746449769058,3.58075,1803.9,1803.8,4.84071]
[1746449769361,3.58075,1803.9,1803.8,3.732]
[1746449769861,3.58075,1803.9,1803.8,4.84071]
[1746449770061,3.58075,1803.9,1803.8,3.732]
[1746449775071,3.58075,1803.9,1803.8,4.84071]
[1746449776062,1.10865,1803.9,1803.8,4.84071]
[1746449776370,1.10864,1804.0,1803.9,1.10859]
[1746449776577,10.41274403,1804.1,1804.0,1.10859]
[1746449776777,9.59224403,1804.1,1804.0,1.10859]
[1746449776978,6.38444403,1804.1,1804.0,2.78349]
[1746449777179,6.38444403,1804.1,1804.0,6.51549]
[1746449777879,6.38444403,1804.1,1804.0,3.732]
[1746449778282,6.38444403,1804.1,1804.0,4.84059]
[1746449780576,2.69877,1804.1,1804.0,4.84059]
[1746449781486,1.5902,1804.1,1804.0,4.84059]
[1746449781787,8.81882403,1804.3,1804.2,1.10846]
[1746449781978,9.70082403,1804.3,1804.2,1.10846]
[1746449782179,4.79407403,1804.3,1804.2,4.84046]
[1746449782379,4.79407403,1804.3,1804.2,6.54856]
[1746449783487,2.8073,1804.3,1804.2,5.69986]
[1746449783785,3.6238,1804.3,1804.2,5.69986]
[1746449787990,3.6238,1804.3,1804.2,4.84046]
[1746449788189,3.6238,1804.3,1804.2,3.732]
[1746449791093,3.6238,1804.3,1804.2,4.84046]
[1746449791479,2.8073,1804.3,1804.2,4.84046]
[1746449791690,2.8073,1804.3,1804.2,6.44156]
[1746449792893,2.8073,1804.3,1804.2,3.732]
[1746449793987,2.8073,1804.3,1804.2,4.84046]
[1746449799298,2.8073,1804.3,1804.2,6.54866]
[1746449803103,1.6989,1804.3,1804.2,9.75646]
[1746449803304,4.79394403,1804.6,1804.5,1.10828]
[1746449803503,6.43194403,1804.6,1804.5,1.10828]
[1746449803707,2.74627,1804.6,1804.5,1.10828]
[1746449804205,2.74627,1804.6,1804.5,6.46528]
[1746449805006,2.74627,1804.6,1804.5,4.84028]
[1746449805304,2.74627,1804.6,1804.5,3.732]
[1746449805697,2.74627,1804.6,1804.5,4.84028]
[1746449806406,2.74627,1804.6,1804.5,3.732]
[1746449807803,2.74627,1804.6,1804.5,4.84028]
[1746449808010,2.74627,1804.6,1804.5,3.732]
[1746449813109,1.10834,1804.4,1804.3,1.10835]
[1746449814113,1.10834,1804.4,1804.3,4.84035]
[1746449814412,2.74054,1804.4,1804.3,4.84035]
[1746449815805,2.74054,1804.4,1804.3,6.45675]
[1746449816907,2.78252,1804.5,1804.4,1.10834]
[1746449817106,2.78252,1804.5,1804.4,4.84034]
[1746449818316,2.78252,1804.5,1804.4,6.51724]
[1746449820613,2.78252,1804.5,1804.4,4.84034]
[1746449821414,1.10827,1804.6,1804.5,1.10828]
[1746449821614,2.72977,1804.6,1804.5,3.55608]
[1746449822114,2.72977,1804.6,1804.5,7.28808]
[1746449822816,1.10821,1804.7,1804.6,1.10822]
[1746449823014,1.10821,1804.7,1804.6,2.70242]
[1746449826525,2.72965,1804.8,1804.7,1.10816]
[1746449827118,2.72965,1804.8,1804.7,4.84016]
[1746449828116,2.72965,1804.8,1804.7,3.732]
[1746449828418,2.72965,1804.8,1804.7,4.84016]
[1746449831925,2.72965,1804.8,1804.7,6.50526]
[1746449836029,5.13892,1805.0,1804.9,1.10803]
[1746449836628,6.81912,1805.0,1804.9,1.10803]
[1746449837224,6.81912,1805.0,1804.9,4.84003]
[1746449837828,3.61132,1805.0,1804.9,4.84003]
[1746449838230,3.61132,1805.0,1804.9,3.732]
[1746449838532,6.81912,1805.0,1804.9,3.732]
[1746449839434,6.81912,1805.0,1804.9,4.84003]
[1746449842527,3.61132,1805.0,1804.9,4.84003]
[1746449842930,3.61132,1805.0,1804.9,7.23703]
[1746449843131,3.61132,1805.0,1804.9,3.732]
[1746449843337,3.61132,1805.0,1804.9,4.84003]
[1746449849943,3.61132,1805.0,1804.9,3.732]
[1746449851651,6.81912,1805.0,1804.9,3.732]
[1746449852145,1.10816,1804.7,1804.6,1.10817]
[1746449852548,3.60816,1804.7,1804.6,1.10817]
[1746449854743,3.60816,1804.7,1804.6,2.69257]
[1746449854948,1.7155,1804.7,1804.6,2.69257]
[1746449855146,1.7155,1804.7,1804.6,3.47977]
[1746449856049,2.82366,1804.7,1804.6,3.47977]
[1746449857549,1.7155,1804.7,1804.6,3.47977]
[1746449857742,1.10814,1804.8,1804.7,1.10816]
[1746449857943,2.68324,1804.8,1804.7,3.65376]
[1746449858147,2.68324,1804.8,1804.7,7.38576]
[1746449858445,1.5751,1804.8,1804.7,7.38576]
[1746449862054,3.2789,1804.9,1804.8,1.1081]
[1746449862358,1.5775,1804.9,1804.8,2.7527]
[1746449862648,2.68553,1804.9,1804.8,1.1081]
[1746449862849,3.48293,1804.9,1804.8,1.1081]
[1746449863153,3.48293,1804.9,1804.8,4.8401]
[1746449864154,2.3749,1804.9,1804.8,4.8401]
[1746449864548,1.5775,1804.9,1804.8,6.5316]
[1746449865952,3.2078,1805.0,1804.9,1.10803]
[1746449866258,7.19493403,1805.1,1805.0,1.10797]
[1746449866449,5.61613403,1805.1,1805.0,1.10797]
[1746449867155,5.61613403,1805.1,1805.0,4.83997]
[1746449870151,5.61613403,1805.1,1805.0,6.51477]
[1746449870953,3.68567403,1805.1,1805.0,6.51477]
[1746449871756,7.71157403,1805.2,1805.1,1.10791]
[1746449871960,7.71157403,1805.2,1805.1,3.61311]
[1746449872362,8.81942403,1805.2,1805.1,3.61311]